[Event "*** Titled Tuesday Blitz"]
[Site "Chess.com"]
[Date "2020.05.26"]
[Round "4"]
[White "r31415"]
[Black "Gentle_Emperor"]
[Result "0-1"]
[WhiteElo "2466"]
[BlackElo "2315"]
[TimeControl "180+1"]
[EndTime "10:39:15 PDT"]
[Termination "Gentle_Emperor won by checkmate"]

1. e4 {[%clk 0:03:00.5]} 1... c5 {[%clk 0:03:00.2]} 2. Nf3 {[%clk 0:02:58.9]}
2... d6 {[%clk 0:03:00.6]} 3. d4 {[%clk 0:02:58.6]} 3... cxd4 {[%clk 0:03:01.5]}
4. Nxd4 {[%clk 0:02:59.5]} 4... Nf6 {[%clk 0:03:02.4]} 5. Nc3 {[%clk 0:02:59.7]}
5... a6 {[%clk 0:03:02.8]} 6. h3 {[%clk 0:02:52.4]} 6... e5 {[%clk 0:03:02.3]}
7. Nde2 {[%clk 0:02:50.3]} 7... h5 {[%clk 0:03:02.6]} 8. g3 {[%clk 0:02:48.3]}
8... Be7 {[%clk 0:03:02.8]} 9. Bg2 {[%clk 0:02:48.1]} 9... b5 {[%clk 0:03:03.2]}
10. O-O {[%clk 0:02:46.6]} 10... Bb7 {[%clk 0:03:03.5]} 11. a4 {[%clk
0:02:36.6]} 11... b4 {[%clk 0:03:01.6]} 12. Nd5 {[%clk 0:02:34.8]} 12... Nxd5
{[%clk 0:02:56.1]} 13. exd5 {[%clk 0:02:30]} 13... a5 {[%clk 0:02:55.1]} 14. c3
{[%clk 0:02:22.3]} 14... Nd7 {[%clk 0:02:53.7]} 15. cxb4 {[%clk 0:02:11.1]}
15... axb4 {[%clk 0:02:54.6]} 16. Qb3 {[%clk 0:02:10.4]} 16... Ba6 {[%clk
0:02:46.6]} 17. Re1 {[%clk 0:01:54.2]} 17... Nc5 {[%clk 0:02:46]} 18. Qe3 {[%clk
0:01:45]} 18... Rb8 {[%clk 0:02:12.8]} 19. f4 {[%clk 0:01:33.1]} 19... Bf6
{[%clk 0:02:06.7]} 20. fxe5 {[%clk 0:01:31.4]} 20... Bxe5 {[%clk 0:02:06.4]} 21.
Nd4 {[%clk 0:01:26.5]} 21... O-O {[%clk 0:02:05.9]} 22. Nc6 {[%clk 0:01:24.9]}
22... Qf6 {[%clk 0:02:04.7]} 23. Nxe5 {[%clk 0:00:59.9]} 23... dxe5 {[%clk
0:02:03.5]} 24. Qxe5 {[%clk 0:01:00.8]} 24... Qxe5 {[%clk 0:02:00.9]} 25. Rxe5
{[%clk 0:00:59.6]} 25... Nb3 {[%clk 0:02:01.3]} 26. Rb1 {[%clk 0:00:38.5]} 26...
Bd3 {[%clk 0:02:01.4]} 27. Re3 {[%clk 0:00:37.2]} 27... Bxb1 {[%clk 0:02:00.5]}
28. Rxb3 {[%clk 0:00:36.9]} 28... Bc2 {[%clk 0:02:00.7]} 29. Re3 {[%clk
0:00:31.2]} 29... Bxa4 {[%clk 0:02:00.4]} 30. Rd3 {[%clk 0:00:26.2]} 30... Bb5
{[%clk 0:01:56.2]} 31. Rd4 {[%clk 0:00:25.5]} 31... Rbc8 {[%clk 0:01:52.2]} 32.
Bd2 {[%clk 0:00:23.4]} 32... Rc2 {[%clk 0:01:48.5]} 33. Bxb4 {[%clk 0:00:23.2]}
33... Re8 {[%clk 0:01:48]} 34. Bc3 {[%clk 0:00:23.2]} 34... Ra8 {[%clk
0:01:46.7]} 35. d6 {[%clk 0:00:20.6]} 35... Ra1+ {[%clk 0:01:40]} 36. Kh2 {[%clk
0:00:20.4]} 36... Bf1 {[%clk 0:01:40.3]} 37. Rd2 {[%clk 0:00:16]} 37... Rxd2
{[%clk 0:01:36.4]} 38. Bxd2 {[%clk 0:00:14.9]} 38... Bxg2 {[%clk 0:01:32.5]} 39.
Kxg2 {[%clk 0:00:15.2]} 39... Rd1 {[%clk 0:01:28.7]} 40. Bb4 {[%clk 0:00:13.2]}
40... Rd3 {[%clk 0:01:25.7]} 41. Kf2 {[%clk 0:00:11.9]} 41... f6 {[%clk
0:01:25]} 42. Bc5 {[%clk 0:00:09.9]} 42... Kf7 {[%clk 0:01:23.7]} 43. b4 {[%clk
0:00:10]} 43... Ke6 {[%clk 0:01:21.9]} 44. Kg2 {[%clk 0:00:09]} 44... Kd7 {[%clk
0:01:20.7]} 45. g4 {[%clk 0:00:08.3]} 45... h4 {[%clk 0:01:18]} 46. Kh2 {[%clk
0:00:08.1]} 46... Kc6 {[%clk 0:01:17.6]} 47. Kg2 {[%clk 0:00:05.7]} 47... Rd2+
{[%clk 0:01:16.3]} 48. Kf3 {[%clk 0:00:04.6]} 48... Rh2 {[%clk 0:01:10.4]} 49.
Kf4 {[%clk 0:00:01.9]} 49... Rxh3 {[%clk 0:01:10.3]} 50. Kf5 {[%clk 0:00:02.8]}
50... Rd3 {[%clk 0:01:08.1]} 51. Kg6 {[%clk 0:00:01.8]} 51... h3 {[%clk
0:01:08.8]} 52. Kxg7 {[%clk 0:00:02.1]} 52... h2 {[%clk 0:01:07.4]} 53. Kxf6
{[%clk 0:00:03]} 53... h1=Q {[%clk 0:01:07.8]} 54. g5 {[%clk 0:00:01.1]} 54...
Qf3+ {[%clk 0:01:07.8]} 55. Kg7 {[%clk 0:00:01.6]} 55... Rd5 {[%clk 0:01:06.2]}
56. g6 {[%clk 0:00:02.5]} 56... Rg5 {[%clk 0:01:05.3]} 57. Kh7 {[%clk
0:00:02.7]} 57... Qf6 {[%clk 0:01:04.4]} 58. g7 {[%clk 0:00:03.6]} 58... Qxg7#
{[%clk 0:01:04.4]} 0-1

[Event "*** Titled Tuesday Blitz"]
[Site "Chess.com"]
[Date "2020.05.26"]
[Round "4"]
[White "GMSrinath"]
[Black "RATNAKARAN"]
[Result "1/2-1/2"]
[WhiteElo "2814"]
[BlackElo "2540"]
[TimeControl "180+1"]
[EndTime "10:39:18 PDT"]
[Termination "Game drawn by agreement"]

1. Nf3 {[%clk 0:03:00.9]} 1... g6 {[%clk 0:02:58.8]} 2. c4 {[%clk 0:02:58.5]}
2... Bg7 {[%clk 0:02:59.7]} 3. d4 {[%clk 0:02:58.8]} 3... Nf6 {[%clk 0:02:58.1]}
4. g3 {[%clk 0:02:59.2]} 4... O-O {[%clk 0:02:58.6]} 5. Bg2 {[%clk 0:02:59.8]}
5... d6 {[%clk 0:02:59.3]} 6. O-O {[%clk 0:02:59.8]} 6... Nbd7 {[%clk
0:03:00.2]} 7. b3 {[%clk 0:03:00.2]} 7... e5 {[%clk 0:03:00.8]} 8. dxe5 {[%clk
0:02:59.4]} 8... dxe5 {[%clk 0:03:00.4]} 9. Bb2 {[%clk 0:02:56.9]} 9... Qe7
{[%clk 0:02:58.4]} 10. Nc3 {[%clk 0:02:56.6]} 10... c6 {[%clk 0:02:52.8]} 11.
Ng5 {[%clk 0:02:56.4]} 11... h6 {[%clk 0:02:51.2]} 12. Nge4 {[%clk 0:02:56.3]}
12... Rd8 {[%clk 0:02:49.2]} 13. Qd6 {[%clk 0:02:49.2]} 13... Bf8 {[%clk
0:02:43.6]} 14. Rad1 {[%clk 0:02:30.1]} 14... Nxe4 {[%clk 0:02:36.6]} 15. Nxe4
{[%clk 0:02:31]} 15... Qxd6 {[%clk 0:02:36.4]} 16. Nxd6 {[%clk 0:02:30.5]} 16...
f6 {[%clk 0:02:32.1]} 17. f4 {[%clk 0:02:18.4]} 17... exf4 {[%clk 0:02:29.5]}
18. gxf4 {[%clk 0:02:13.8]} 18... f5 {[%clk 0:02:19]} 19. e4 {[%clk 0:02:08.8]}
19... fxe4 {[%clk 0:02:16.4]} 20. Bxe4 {[%clk 0:02:09.7]} 20... Nc5 {[%clk
0:02:16.1]} 21. Nxc8 {[%clk 0:02:01.3]} 21... Rxd1 {[%clk 0:02:10.7]} 22. Rxd1
{[%clk 0:02:02.2]} 22... Nxe4 {[%clk 0:02:10.9]} 23. Rd8 {[%clk 0:02:02.2]}
23... Kf7 {[%clk 0:02:06.9]} 24. Nd6+ {[%clk 0:01:56.6]} 24... Bxd6 {[%clk
0:02:05.4]} 25. Rxa8 {[%clk 0:01:57.5]} 25... Bxf4 {[%clk 0:02:02.6]} 26. Kg2
{[%clk 0:01:56.8]} 26... Nd6 {[%clk 0:01:43.6]} 27. Rxa7 {[%clk 0:01:51.7]}
27... c5 {[%clk 0:01:43.9]} 28. b4 {[%clk 0:01:06.7]} 28... cxb4 {[%clk
0:01:36.4]} 29. c5 {[%clk 0:01:07]} 29... Be3 {[%clk 0:01:36.3]} 30. Ra5 {[%clk
0:00:48.4]} 30... Nc4 {[%clk 0:01:35.2]} 31. Rb5 {[%clk 0:00:48.8]} 31... Nxb2
{[%clk 0:01:33.5]} 32. Rxb7+ {[%clk 0:00:49.3]} 32... Ke6 {[%clk 0:01:31.2]} 33.
Rxb4 {[%clk 0:00:38.9]} 33... Bc1 {[%clk 0:01:20.4]} 34. c6 {[%clk 0:00:23.7]}
34... Kd6 {[%clk 0:01:18.1]} 35. Rb3 {[%clk 0:00:23.5]} 35... Kc7 {[%clk
0:01:14.4]} 36. h4 {[%clk 0:00:16.1]} 36... Na4 {[%clk 0:01:13.2]} 37. Rb4
{[%clk 0:00:10.5]} 37... Nb6 {[%clk 0:01:11.6]} 38. Re4 {[%clk 0:00:09.5]} 38...
Kxc6 {[%clk 0:01:03.4]} 39. Re6+ {[%clk 0:00:09.6]} 39... Kb5 {[%clk 0:01:01.7]}
40. Rxg6 {[%clk 0:00:10.5]} 40... Nd5 {[%clk 0:01:01.7]} 41. Kf3 {[%clk
0:00:08]} 41... Nc3 {[%clk 0:01:00.1]} 42. Rg2 {[%clk 0:00:06.8]} 42... Kb4
{[%clk 0:00:58.3]} 43. Kg4 {[%clk 0:00:06.3]} 43... Ka3 {[%clk 0:00:54.7]} 44.
Rc2 {[%clk 0:00:05.8]} 44... Nxa2 {[%clk 0:00:54.8]} 45. Kh5 {[%clk 0:00:05.4]}
45... Kb3 {[%clk 0:00:55]} 46. Rc6 {[%clk 0:00:02.3]} 46... Nc3 {[%clk
0:00:52.5]} 47. Rxh6 {[%clk 0:00:02.7]} 47... Bxh6 {[%clk 0:00:52]} 48. Kxh6
{[%clk 0:00:03.6]} 48... Ne4 {[%clk 0:00:48.7]} 49. Kg6 {[%clk 0:00:03.8]} 49...
Ng3 {[%clk 0:00:48]} 50. Kg5 {[%clk 0:00:04.3]} 50... Kc4 {[%clk 0:00:48.3]} 51.
Kf4 {[%clk 0:00:04.8]} 51... Nh5+ {[%clk 0:00:40.1]} 52. Kg4 {[%clk 0:00:04.9]}
52... Ng7 {[%clk 0:00:39.9]} 53. Kg5 {[%clk 0:00:05.8]} 53... Kd5 {[%clk
0:00:40.2]} 54. Kg6 {[%clk 0:00:06.1]} 54... Ne6 {[%clk 0:00:40.4]} 55. Kf6
{[%clk 0:00:06.5]} 55... Nf4 {[%clk 0:00:40]} 56. Kf5 {[%clk 0:00:07]} 56... Nh5
{[%clk 0:00:40.2]} 57. Kg5 {[%clk 0:00:07]} 57... Ng3 {[%clk 0:00:35.4]} 58. Kg4
{[%clk 0:00:05.9]} 1/2-1/2

[Event "*** Titled Tuesday Blitz"]
[Site "Chess.com"]
[Date "2020.05.26"]
[Round "4"]
[White "yobdc"]
[Black "zmeeed67"]
[Result "0-1"]
[WhiteElo "2045"]
[BlackElo "2438"]
[TimeControl "180+1"]
[EndTime "10:39:19 PDT"]
[Termination "zmeeed67 won on time"]

1. e4 {[%clk 0:03:00.9]} 1... Nc6 {[%clk 0:02:55.6]} 2. Nf3 {[%clk 0:03:00]}
2... d6 {[%clk 0:02:55.8]} 3. d4 {[%clk 0:02:58.8]} 3... Nf6 {[%clk 0:02:56]} 4.
Nc3 {[%clk 0:02:58.5]} 4... Bg4 {[%clk 0:02:55.9]} 5. Be3 {[%clk 0:02:57.1]}
5... g6 {[%clk 0:02:53.3]} 6. Be2 {[%clk 0:02:55.4]} 6... Bg7 {[%clk 0:02:53.2]}
7. h3 {[%clk 0:02:55.7]} 7... Bxf3 {[%clk 0:02:53.3]} 8. Bxf3 {[%clk 0:02:55.7]}
8... O-O {[%clk 0:02:54.2]} 9. O-O {[%clk 0:02:41.8]} 9... Nd7 {[%clk
0:02:54.2]} 10. Qd2 {[%clk 0:02:25.7]} 10... e5 {[%clk 0:02:52.8]} 11. dxe5
{[%clk 0:02:20.4]} 11... Ncxe5 {[%clk 0:02:39.2]} 12. Be2 {[%clk 0:02:20.3]}
12... Re8 {[%clk 0:02:39.1]} 13. f4 {[%clk 0:02:17.7]} 13... Nc6 {[%clk
0:02:38.2]} 14. Bf3 {[%clk 0:02:13.7]} 14... Nc5 {[%clk 0:02:31.9]} 15. e5
{[%clk 0:02:02.1]} 15... Ne6 {[%clk 0:02:18.8]} 16. Bxc6 {[%clk 0:01:36]} 16...
bxc6 {[%clk 0:02:18.1]} 17. f5 {[%clk 0:01:32.5]} 17... gxf5 {[%clk 0:02:11.7]}
18. exd6 {[%clk 0:01:26.3]} 18... cxd6 {[%clk 0:01:38.1]} 19. Rxf5 {[%clk
0:01:26.1]} 19... d5 {[%clk 0:01:36.7]} 20. Na4 {[%clk 0:01:03.2]} 20... Rb8
{[%clk 0:00:48.8]} 21. Raf1 {[%clk 0:01:01.6]} 21... Qe7 {[%clk 0:00:49]} 22.
Bh6 {[%clk 0:00:56.6]} 22... Qb4 {[%clk 0:00:20.3]} 23. Rxf7 {[%clk 0:00:25.8]}
23... Qxd2 {[%clk 0:00:13.5]} 24. Bxd2 {[%clk 0:00:25.2]} 24... Bd4+ {[%clk
0:00:10.8]} 25. Kh1 {[%clk 0:00:24.7]} 25... Bxb2 {[%clk 0:00:11.4]} 26. Rxa7
{[%clk 0:00:23.4]} 26... Bd4 {[%clk 0:00:09.1]} 27. Ra6 {[%clk 0:00:20.6]} 27...
Rec8 {[%clk 0:00:04.7]} 28. Bh6 {[%clk 0:00:18.9]} 28... Ra8 {[%clk 0:00:03.6]}
29. Rxa8 {[%clk 0:00:10.6]} 29... Rxa8 {[%clk 0:00:04.5]} 30. c3 {[%clk
0:00:09.2]} 30... Bg7 {[%clk 0:00:04.4]} 31. Bxg7 {[%clk 0:00:07.9]} 31... Kxg7
{[%clk 0:00:05.3]} 32. Nb6 {[%clk 0:00:07.6]} 32... Rxa2 {[%clk 0:00:05.6]} 33.
Nd7 {[%clk 0:00:05.1]} 33... Rc2 {[%clk 0:00:02.5]} 34. Rf3 {[%clk 0:00:05.2]}
34... d4 {[%clk 0:00:01.8]} 35. cxd4 {[%clk 0:00:05]} 35... Nxd4 {[%clk
0:00:02.7]} 36. Rg3+ {[%clk 0:00:05.3]} 36... Kf7 {[%clk 0:00:02.7]} 37. Ne5+
{[%clk 0:00:05]} 37... Ke6 {[%clk 0:00:03.2]} 38. Ng4 {[%clk 0:00:04.4]} 38...
c5 {[%clk 0:00:03.4]} 39. Re3+ {[%clk 0:00:04.5]} 39... Kf5 {[%clk 0:00:03.2]}
40. Nh6+ {[%clk 0:00:03]} 40... Kg6 {[%clk 0:00:02.8]} 41. Ng4 {[%clk
0:00:03.1]} 41... Rc1+ {[%clk 0:00:03.7]} 42. Kh2 {[%clk 0:00:03]} 42... c4
{[%clk 0:00:04.3]} 43. Re5 {[%clk 0:00:02.3]} 43... c3 {[%clk 0:00:04]} 44. Rc5
{[%clk 0:00:02.4]} 44... Ne2 {[%clk 0:00:04.2]} 45. Ne3 {[%clk 0:00:02]} 45...
Kf6 {[%clk 0:00:03.7]} 46. h4 {[%clk 0:00:01.5]} 46... Ke6 {[%clk 0:00:03.8]}
0-1

[Event "*** Titled Tuesday Blitz"]
[Site "Chess.com"]
[Date "2020.05.26"]
[Round "4"]
[White "DenLaz"]
[Black "WhiteCapital80"]
[Result "1-0"]
[WhiteElo "2659"]
[BlackElo "2405"]
[TimeControl "180+1"]
[EndTime "10:39:20 PDT"]
[Termination "DenLaz won by resignation"]

1. Nf3 {[%clk 0:03:00.9]} 1... Nf6 {[%clk 0:02:58.6]} 2. c4 {[%clk 0:03:00.8]}
2... e6 {[%clk 0:02:58.7]} 3. Nc3 {[%clk 0:02:59.6]} 3... d5 {[%clk 0:02:58.7]}
4. e3 {[%clk 0:03:00.1]} 4... Be7 {[%clk 0:02:58.6]} 5. b3 {[%clk 0:02:58.4]}
5... O-O {[%clk 0:02:58.3]} 6. Bb2 {[%clk 0:02:58.8]} 6... c5 {[%clk 0:02:58.2]}
7. cxd5 {[%clk 0:02:57.1]} 7... Nxd5 {[%clk 0:02:58]} 8. Nxd5 {[%clk 0:02:50.6]}
8... exd5 {[%clk 0:02:54.3]} 9. d4 {[%clk 0:02:47.2]} 9... Nc6 {[%clk
0:02:53.8]} 10. Bd3 {[%clk 0:02:42.9]} 10... cxd4 {[%clk 0:02:52.4]} 11. Nxd4
{[%clk 0:02:43.8]} 11... Qa5+ {[%clk 0:02:42.4]} 12. Kf1 {[%clk 0:02:42]} 12...
Qd8 {[%clk 0:02:28.1]} 13. Qh5 {[%clk 0:02:35.9]} 13... g6 {[%clk 0:02:27.5]}
14. Qe2 {[%clk 0:02:32.4]} 14... Bf6 {[%clk 0:02:23]} 15. Nxc6 {[%clk
0:02:30.2]} 15... bxc6 {[%clk 0:02:22.7]} 16. Rc1 {[%clk 0:02:30.8]} 16... Bd7
{[%clk 0:02:20.7]} 17. h4 {[%clk 0:02:28.5]} 17... h5 {[%clk 0:02:19.2]} 18. g3
{[%clk 0:02:14.9]} 18... Re8 {[%clk 0:02:12.1]} 19. Kg2 {[%clk 0:02:13.8]} 19...
Bg4 {[%clk 0:02:08.7]} 20. Qd2 {[%clk 0:02:12.3]} 20... Rc8 {[%clk 0:02:01.3]}
21. Rhe1 {[%clk 0:02:02.3]} 21... Qd6 {[%clk 0:01:44.8]} 22. Bf1 {[%clk
0:02:00.1]} 22... Re6 {[%clk 0:01:37.6]} 23. Kg1 {[%clk 0:01:58.5]} 23... Bf3
{[%clk 0:01:34]} 24. Bxf6 {[%clk 0:01:36.5]} 24... Rxf6 {[%clk 0:01:34]} 25. Qa5
{[%clk 0:01:37.1]} 25... Qb8 {[%clk 0:01:25.6]} 26. Qc3 {[%clk 0:01:28.4]} 26...
Re6 {[%clk 0:01:22.7]} 27. Bh3 {[%clk 0:01:26.3]} 27... Bg4 {[%clk 0:01:18.7]}
28. Bxg4 {[%clk 0:01:24.6]} 28... hxg4 {[%clk 0:01:18.9]} 29. Qd3 {[%clk
0:01:22.8]} 29... Qb4 {[%clk 0:01:15.6]} 30. Qc3 {[%clk 0:01:15.3]} 30... a5
{[%clk 0:01:14.1]} 31. Red1 {[%clk 0:01:10.3]} 31... Qb6 {[%clk 0:01:12.9]} 32.
Qd4 {[%clk 0:01:09]} 32... Qxd4 {[%clk 0:00:58.6]} 33. Rxd4 {[%clk 0:01:09.9]}
33... Re4 {[%clk 0:00:57]} 34. Rxe4 {[%clk 0:01:09.9]} 34... dxe4 {[%clk
0:00:56.9]} 35. Rc5 {[%clk 0:01:10.4]} 35... a4 {[%clk 0:00:55.8]} 36. bxa4
{[%clk 0:01:11.3]} 36... Ra8 {[%clk 0:00:55.9]} 37. a5 {[%clk 0:01:11.5]} 37...
Ra6 {[%clk 0:00:53.1]} 38. Kf1 {[%clk 0:01:07.1]} 38... f5 {[%clk 0:00:51.6]}
39. Ke2 {[%clk 0:01:07.4]} 39... Kf7 {[%clk 0:00:51.7]} 40. Kd2 {[%clk 0:01:08]}
40... Ke6 {[%clk 0:00:52.4]} 41. Kc3 {[%clk 0:01:05.1]} 41... Kd6 {[%clk
0:00:52.7]} 42. Kb4 {[%clk 0:01:05.7]} 42... Ra8 {[%clk 0:00:52.7]} 43. Rc2
{[%clk 0:01:04]} 43... c5+ {[%clk 0:00:49.1]} 44. Ka4 {[%clk 0:01:02.2]} 44...
Kc6 {[%clk 0:00:48.1]} 45. Rb2 {[%clk 0:01:00.9]} 45... Rd8 {[%clk 0:00:47]} 46.
a6 {[%clk 0:00:56.9]} 46... Ra8 {[%clk 0:00:41.8]} 47. Ka5 {[%clk 0:00:55.9]}
47... c4 {[%clk 0:00:42]} 48. Kb4 {[%clk 0:00:43]} 48... Rxa6 {[%clk 0:00:41.5]}
49. Kxc4 {[%clk 0:00:43.1]} 49... Ra3 {[%clk 0:00:40.4]} 50. Kd4 {[%clk
0:00:42.9]} 50... Ra5 {[%clk 0:00:39.4]} 51. Kc4 {[%clk 0:00:36.5]} 51... Ra4+
{[%clk 0:00:39.2]} 52. Kb3 {[%clk 0:00:36.7]} 52... Ra5 {[%clk 0:00:38.5]} 53.
a4 {[%clk 0:00:37.1]} 53... Rd5 {[%clk 0:00:37.3]} 54. Kb4 {[%clk 0:00:35.4]}
54... Rd1 {[%clk 0:00:37.3]} 55. a5 {[%clk 0:00:35.4]} 55... Ra1 {[%clk
0:00:37]} 56. Rc2+ {[%clk 0:00:35.6]} 56... Kd5 {[%clk 0:00:35.2]} 57. Kb5
{[%clk 0:00:35.6]} 57... Rb1+ {[%clk 0:00:34.8]} 58. Ka6 {[%clk 0:00:35.9]}
58... Ra1 {[%clk 0:00:34]} 59. Kb6 {[%clk 0:00:36.1]} 59... Rb1+ {[%clk
0:00:33.2]} 60. Ka7 {[%clk 0:00:36.1]} 60... Ra1 {[%clk 0:00:33.4]} 61. a6
{[%clk 0:00:36.6]} 61... Ke6 {[%clk 0:00:29.5]} 62. Kb7 {[%clk 0:00:36.6]} 62...
Rb1+ {[%clk 0:00:26.5]} 63. Ka8 {[%clk 0:00:36.1]} 63... Kd5 {[%clk 0:00:23.3]}
64. a7 {[%clk 0:00:36.1]} 64... Rb3 {[%clk 0:00:23.1]} 65. Rc7 {[%clk
0:00:35.4]} 65... Rb2 {[%clk 0:00:21.6]} 66. Rb7 {[%clk 0:00:35.9]} 1-0

[Event "*** Titled Tuesday Blitz"]
[Site "Chess.com"]
[Date "2020.05.26"]
[Round "4"]
[White "MacDaddyMac"]
[Black "keepitcool9499"]
[Result "0-1"]
[WhiteElo "2257"]
[BlackElo "2432"]
[TimeControl "180+1"]
[EndTime "10:39:20 PDT"]
[Termination "keepitcool9499 won by resignation"]

1. e4 {[%clk 0:03:00.9]} 1... e6 {[%clk 0:03:00.9]} 2. d4 {[%clk 0:02:57.6]}
2... d5 {[%clk 0:03:01.8]} 3. e5 {[%clk 0:02:57.6]} 3... c5 {[%clk 0:03:00.9]}
4. c3 {[%clk 0:02:58]} 4... Nc6 {[%clk 0:03:01.2]} 5. Nf3 {[%clk 0:02:57.2]}
5... Bd7 {[%clk 0:03:01.5]} 6. Be2 {[%clk 0:02:55.8]} 6... f5 {[%clk 0:03:01.8]}
7. a3 {[%clk 0:02:55.5]} 7... Be7 {[%clk 0:03:01.1]} 8. b4 {[%clk 0:02:55.7]}
8... b6 {[%clk 0:03:01.2]} 9. Bb2 {[%clk 0:02:54.3]} 9... Nh6 {[%clk 0:03:00.6]}
10. h4 {[%clk 0:02:52.4]} 10... Nf7 {[%clk 0:03:00.8]} 11. b5 {[%clk 0:02:40.9]}
11... Na5 {[%clk 0:02:58.5]} 12. a4 {[%clk 0:02:40.4]} 12... O-O {[%clk
0:02:20.7]} 13. Nbd2 {[%clk 0:02:30.4]} 13... Rc8 {[%clk 0:02:11.5]} 14. Ba3
{[%clk 0:02:20.3]} 14... Rc7 {[%clk 0:02:03]} 15. Nb3 {[%clk 0:02:20.3]} 15...
Nc4 {[%clk 0:02:00.7]} 16. Bxc4 {[%clk 0:02:15.6]} 16... dxc4 {[%clk 0:02:01.6]}
17. Nbd2 {[%clk 0:02:15.2]} 17... cxd4 {[%clk 0:01:59.5]} 18. Bxe7 {[%clk
0:02:15.1]} 18... Qxe7 {[%clk 0:01:58.4]} 19. cxd4 {[%clk 0:02:11]} 19... c3
{[%clk 0:01:56.5]} 20. Nb3 {[%clk 0:02:10.7]} 20... Qb4 {[%clk 0:01:52]} 21. Qc2
{[%clk 0:02:08.5]} 21... Qc4 {[%clk 0:01:46]} 22. Nc1 {[%clk 0:01:48.9]} 22...
Rd8 {[%clk 0:01:30.3]} 23. Ne2 {[%clk 0:01:32.1]} 23... a6 {[%clk 0:01:18]} 24.
bxa6 {[%clk 0:01:24.8]} 24... Qxa6 {[%clk 0:01:18.9]} 25. O-O {[%clk 0:01:19.1]}
25... Bc6 {[%clk 0:01:13.8]} 26. Nf4 {[%clk 0:00:56.9]} 26... Be4 {[%clk
0:01:07.6]} 27. Qa2 {[%clk 0:00:56.3]} 27... Qc8 {[%clk 0:00:47.1]} 28. Qxe6
{[%clk 0:00:49.5]} 28... Bxf3 {[%clk 0:00:41.3]} 29. gxf3 {[%clk 0:00:44]} 29...
Rxd4 {[%clk 0:00:36.5]} 30. Qxc8+ {[%clk 0:00:35.4]} 30... Rxc8 {[%clk
0:00:37.4]} 31. Ne2 {[%clk 0:00:28.7]} 31... Rxh4 {[%clk 0:00:33.2]} 32. Rfc1
{[%clk 0:00:25.9]} 32... Rhc4 {[%clk 0:00:30.3]} 33. f4 {[%clk 0:00:22]} 33...
c2 {[%clk 0:00:27.7]} 34. Ra2 {[%clk 0:00:21.5]} 34... g5 {[%clk 0:00:21]} 35.
fxg5 {[%clk 0:00:21.1]} 35... Nxe5 {[%clk 0:00:18.8]} 36. Ra3 {[%clk 0:00:13.5]}
36... Rd8 {[%clk 0:00:16.4]} 37. f4 {[%clk 0:00:13.8]} 37... Rd1+ {[%clk
0:00:14.5]} 38. Kf2 {[%clk 0:00:14.3]} 38... Nd3+ {[%clk 0:00:11.1]} 39. Rxd3
{[%clk 0:00:13.1]} 39... Rxd3 {[%clk 0:00:12]} 40. Ke1 {[%clk 0:00:12.1]} 40...
Rd1+ {[%clk 0:00:09]} 41. Rxd1 {[%clk 0:00:12]} 41... cxd1=Q+ {[%clk 0:00:09.9]}
42. Kxd1 {[%clk 0:00:12.9]} 42... Rxa4 {[%clk 0:00:09.6]} 43. Kd2 {[%clk
0:00:13.7]} 43... Kg7 {[%clk 0:00:08.6]} 44. Ke3 {[%clk 0:00:14.6]} 44... Kg6
{[%clk 0:00:08.8]} 45. Nc3 {[%clk 0:00:14.8]} 45... Ra3 {[%clk 0:00:08.5]} 46.
Kd4 {[%clk 0:00:15.3]} 46... Rxc3 {[%clk 0:00:08.7]} 47. Kxc3 {[%clk 0:00:16.2]}
47... Kh5 {[%clk 0:00:09.1]} 48. Kd4 {[%clk 0:00:16.4]} 48... Kg4 {[%clk
0:00:09.6]} 49. Ke5 {[%clk 0:00:17.3]} 49... b5 {[%clk 0:00:09]} 50. Kf6 {[%clk
0:00:17.5]} 50... b4 {[%clk 0:00:08.7]} 51. Kg7 {[%clk 0:00:18.4]} 51... b3
{[%clk 0:00:09]} 52. Kxh7 {[%clk 0:00:18.7]} 52... b2 {[%clk 0:00:08.9]} 53. g6
{[%clk 0:00:19.6]} 53... b1=Q {[%clk 0:00:09.2]} 54. g7 {[%clk 0:00:19.9]} 54...
Qb7 {[%clk 0:00:08.6]} 55. Kh6 {[%clk 0:00:19.9]} 55... Qxg7+ {[%clk 0:00:08.4]}
56. Kxg7 {[%clk 0:00:20.1]} 56... Kxf4 {[%clk 0:00:08.9]} 57. Kh6 {[%clk
0:00:21]} 57... Kg4 {[%clk 0:00:09.2]} 58. Kg6 {[%clk 0:00:21.2]} 58... f4
{[%clk 0:00:10.1]} 59. Kf6 {[%clk 0:00:21.6]} 59... f3 {[%clk 0:00:11]} 60. Ke5
{[%clk 0:00:22.3]} 60... f2 {[%clk 0:00:11.9]} 61. Kd4 {[%clk 0:00:23]} 61...
f1=Q {[%clk 0:00:12.8]} 62. Ke3 {[%clk 0:00:23.5]} 62... Qf4+ {[%clk 0:00:13]}
63. Ke2 {[%clk 0:00:23.4]} 63... Qf3+ {[%clk 0:00:12.7]} 64. Kd2 {[%clk
0:00:23.6]} 64... Kf4 {[%clk 0:00:12.7]} 65. Ke1 {[%clk 0:00:24.5]} 65... Qe3+
{[%clk 0:00:12.6]} 66. Kf1 {[%clk 0:00:24.7]} 66... Qd2 {[%clk 0:00:12.7]} 0-1